fUSD/lending_fUSD_20260128
["ID","MTS","AMOUNT","RATE_DAILY","PERIOD"]
[403846567,1769593840631,-250.45243939,0.00014824,2]
[403846568,1769593840641,-727.95827,0.0001487,2]
[403846569,1769593840650,-727.95827,0.0001487,2]
[403846570,1769593840660,-727.95827,0.0001487,2]
[403846571,1769593840669,-727.95827,0.0001487,2]
[403846572,1769593840678,-727.95827,0.0001487,2]
[403846573,1769593840688,-2000.0,0.0001487,2]
[403846574,1769593840704,-2000.0,0.0001487,2]
[403846575,1769593840713,-2000.0,0.0001487,2]
[403846576,1769593840723,-2000.0,0.0001487,2]
[403846577,1769593840732,-2000.0,0.0001487,2]
[403846578,1769593840742,-2000.0,0.0001487,2]
[403846579,1769593840751,-727.95827,0.0001487,2]
[403846580,1769593840762,-1428.82,0.0001487,2]
[403846581,1769593840772,-500.0,0.00014891,2]
[403846582,1769593840788,-500.0,0.0001493,2]
[403846583,1769593840797,-524.42153224,0.0001493,2]
[403846584,1769593840808,-187.78006525,0.00014944,2]
[403846585,1769593840818,-918.64355495,0.00014944,2]
[403846586,1769593840827,-255.0,0.00014978,2]
[403846587,1769593840837,-174.25,0.00015,2]
[403846588,1769593840846,-155.0,0.00015011,2]
[403846589,1769593840856,-212.94201689,0.0001502,2]
[403846590,1769593840867,-151.0,0.0001502,2]
[403846591,1769593840878,-151.0,0.0001502,2]
[403846592,1769593840888,-200.0,0.0001502,2]
[403846593,1769593840898,-3134.67,0.00015043,2]
[403846594,1769593840909,-5717.41,0.00015056,2]
[403846595,1769593840919,-3134.67,0.00015067,2]
[403846596,1769593840930,-8544.0849219,0.00015067,2]
[403846597,1769593840940,-225.4,0.00015068,2]
[403846598,1769593840949,-3134.67,0.0001509,2]
[403846599,1769593840959,-3134.67,0.00015114,2]
[403846600,1769593840971,-166.66,0.00015114,2]
[403846601,1769593840980,-297.37,0.00015128,2]
[403846602,1769593840993,-250.0,0.00015132,2]
[403846603,1769593841003,-250.0,0.00015132,2]
[403846604,1769593841013,-193.0,0.00015132,2]
[403846605,1769593841022,-641.65424881,0.00015132,2]
[403846606,1769593841032,-300.0,0.00015132,2]
[403846607,1769593841041,-3134.67,0.00015137,2]
[403846608,1769593841051,-1428.82,0.00015144,2]
[403846609,1769593841061,-3134.67,0.0001516,2]
[403846610,1769593841071,-500.0,0.00015165,2]
[403846611,1769593841081,-3134.67,0.00015184,2]
[403846612,1769593841092,-3134.67,0.00015207,2]
[403846613,1769593841102,-334.5472959,0.00015217,2]
[403846614,1769593841114,-3134.67,0.00015231,2]
[403846615,1769593841125,-1680.0,0.00015241,2]
[403846616,1769593841134,-155.0,0.00015242,2]
[403846617,1769593841148,-500.0,0.00015242,2]
[403846618,1769593841158,-195.0,0.00015242,2]
[403846619,1769593841169,-5075.37527096,0.00015242,2]
[403846620,1769593841178,-300.0,0.00015242,2]
[403846621,1769593841191,-600.0,0.00015242,2]
[403846622,1769593841201,-2500.0,0.00015242,2]
[403846623,1769593841211,-193.0,0.00015242,2]
[403846624,1769593841222,-311.28176437,0.00015242,2]
[403846625,1769593841232,-195.0,0.00015242,2]
[403846626,1769593841242,-1654.79963415,0.00015242,2]
[403846627,1769593841252,-3134.67,0.00015254,2]
[403846628,1769593841262,-3134.67,0.00015278,2]
[403846629,1769593841272,-1906.4430369,0.00015288,2]
[403846630,1769593841289,-151.0,0.00015295,2]
[403846631,1769593841299,-3134.67,0.00015301,2]
[403846632,1769593841309,-151.0,0.00015306,2]
[403846633,1769593841326,-151.0,0.00015306,2]
[403846634,1769593841335,-151.0,0.00015311,2]
[403846635,1769593841345,-151.0,0.00015321,2]
[403846636,1769593841355,-1480.12,0.00015339,2]
[403846637,1769593841364,-151.0,0.00015346,2]
[403846638,1769593841374,-151.0,0.00015346,2]
[403846639,1769593841384,-873.26,0.0001536,2]
[403846640,1769593841393,-151.0,0.00015377,2]
[403846641,1769593841403,-151.49,0.00015382,2]
[403846642,1769593841413,-1428.82,0.00015418,2]
[403846643,1769593841422,-500.0,0.00015439,2]
[403846644,1769593841431,-194.72792766,0.00015492,2]
[403846645,1769593841442,-952.63336648,0.00015492,2]
[403846646,1769593841451,-502.0,0.00015589,2]
[403846647,1769593841461,-166.66,0.00015597,2]
[403846648,1769593841470,-500.0,0.00015644,2]
[403846649,1769593841479,-8413.0,0.00015649,2]
[403846650,1769593841490,-1428.82,0.00015692,2]
[403846651,1769593841499,-1000.0,0.0001571,2]
[403846652,1769593841508,-500.0,0.00015713,2]
[403846653,1769593841517,-166.11,0.00015765,2]
[403846654,1769593841526,-163.21,0.00015917,2]
[403846655,1769593841535,-885.06,0.00015918,2]
[403846656,1769593841544,-2570.51549528,0.00015925,2]
[403846657,1769593841553,-4534.69402661,0.00015925,2]
[403846658,1769593841562,-6783.63106157,0.00015925,2]
[403846659,1769593841571,-9178.488,0.00015925,2]
[403846660,1769593841581,-1428.82,0.00015966,2]
[403846661,1769593841591,-500.0,0.00015987,2]
[403846662,1769593841601,-4457.0,0.00016034,2]
[403846663,1769593841611,-151.0,0.00016036,2]
[403846664,1769593841621,-1480.12,0.00016037,2]
[403846665,1769593841630,-4457.0,0.00016039,2]
[403846666,1769593841640,-201.93286099,0.0001604,2]
[403846667,1769593841651,-987.88080104,0.0001604,2]
[403846668,1769593841661,-166.66,0.0001608,2]
[403846669,1769593841671,-500.0,0.00016115,2]
[403846670,1769593841681,-500.0,0.00016115,2]
[403846671,1769593841691,-9999.99,0.00016116,2]
[403846672,1769593841700,-4457.0,0.00016152,2]
[403846673,1769593841709,-4457.0,0.00016178,2]
[403846674,1769593841719,-151.0,0.00016192,2]
[403846675,1769593841729,-433.0,0.00016197,2]
[403846676,1769593841739,-5000.0,0.000162,5]
[403846677,1769593841749,-5532.0,0.000162,3]
[403846678,1769593841758,-4457.0,0.00016225,2]
[403846679,1769593841768,-4457.0,0.00016229,2]
[403846680,1769593841778,-4457.0,0.00016237,2]
[403846681,1769593841787,-1428.82,0.0001624,2]
[403846682,1769593841796,-4457.0,0.00016256,2]
[403846683,1769593841806,-500.0,0.00016261,2]
[403846684,1769593841816,-4457.0,0.00016312,2]
[403846685,1769593841826,-4457.0,0.00016336,2]
[403846686,1769593841836,-501.53607282,0.00016373,2]
[403846687,1769593841846,-501.79128109,0.00016373,2]
[403846688,1769593841855,-502.97428002,0.00016373,2]
[403846689,1769593841865,-502.25758494,0.00016373,2]
[403846690,1769593841875,-500.0,0.00016373,2]
[403846691,1769593841886,-160.17647728,0.00016373,2]
[403846692,1769593841897,-156.16956457,0.00016373,2]
[403846693,1769593841909,-503.37037113,0.00016373,2]
[403846694,1769593841919,-500.0,0.00016373,2]
[403846695,1769593841930,-500.0,0.00016373,2]
[403846696,1769593841952,-501.39520865,0.00016373,2]
[403846697,1769593841963,-502.15317364,0.00016373,2]
[403846698,1769593841973,-500.61015295,0.00016373,2]
[403846699,1769593841982,-500.0,0.00016373,2]
[403846700,1769593841991,-500.0,0.00016373,2]
[403846701,1769593842003,-501.18219756,0.00016373,2]
[403846702,1769593842015,-500.85593286,0.00016373,2]
[403846703,1769593842026,-602.73855818,0.00016373,2]
[403846704,1769593842037,-503.37162901,0.00016373,2]
[403846705,1769593842047,-507.46801581,0.00016373,2]
[403846706,1769593842057,-505.73323937,0.00016373,2]
[403846707,1769593842067,-173.57092729,0.00016373,2]
[403846708,1769593842079,-539.78935463,0.00016373,2]
[403846709,1769593842088,-500.0,0.00016373,2]
[403846710,1769593842097,-503.29314635,0.00016373,2]
[403846711,1769593842107,-500.0,0.00016373,2]
[403846712,1769593842117,-501.20531505,0.00016373,2]
[403846713,1769593842129,-503.35759821,0.00016373,2]
[403846714,1769593842142,-162.9653214,0.00016373,2]
[403846715,1769593842156,-160.1775309,0.00016373,2]
[403846716,1769593842166,-400.21378288,0.00016373,2]
[403846717,1769593842177,-500.45700861,0.00016373,2]
[403846718,1769593842189,-200.0,0.00016378,2]
[403846719,1769593842199,-4457.0,0.00016424,2]
[403846720,1769593842209,-4457.0,0.00016434,2]
[403846721,1769593842218,-4457.0,0.00016435,2]
[403846722,1769593842228,-500.0,0.00016437,2]
[403846723,1769593842238,-500.0,0.00016438,2]
[403846724,1769593842248,-500.0,0.00016438,2]
[403846725,1769593842257,-500.0,0.00016438,2]
[403846726,1769593842266,-563.52650006,0.00016438,2]
[403846727,1769593842276,-544.60815205,0.00016438,2]
[403846728,1769593842285,-500.0,0.00016438,2]
[403846729,1769593842294,-578.39080156,0.00016438,2]
[403846730,1769593842304,-601.09777907,0.00016438,2]
[403846731,1769593842313,-500.0,0.00016438,2]
[403846732,1769593842323,-154.38599815,0.00016438,2]
[403846733,1769593842333,-2395.93,0.00016438,2]
[403846734,1769593842342,-2395.93,0.00016438,2]
[403846735,1769593842352,-2395.93,0.00016438,2]
[403846736,1769593842361,-2395.93,0.00016438,2]
[403846737,1769593842371,-2395.93,0.00016438,2]
[403846738,1769593842381,-2395.93,0.00016438,2]
[403846739,1769593842391,-2395.93,0.00016438,2]
[403846740,1769593842401,-2395.93,0.00016438,2]
[403846741,1769593842410,-2395.93,0.00016438,2]
[403846742,1769593842419,-2395.93,0.00016438,2]
[403846743,1769593842429,-2395.93,0.00016438,2]
[403846744,1769593842438,-2395.93,0.00016438,2]
[403846745,1769593842447,-2395.93,0.00016438,2]
[403846746,1769593842456,-2395.93,0.00016438,2]
[403846747,1769593842465,-2395.93,0.00016438,2]
[403846748,1769593842475,-2395.93,0.00016438,2]
[403846749,1769593842486,-2395.93,0.00016438,2]
[403846752,1769593842499,-2395.93,0.00016438,2]
[403846754,1769593842509,-2395.93,0.00016438,2]
[403846755,1769593842518,-2395.93,0.00016438,2]
[403846756,1769593842527,-2395.93,0.00016438,2]
[403846757,1769593842536,-2395.93,0.00016438,2]
[403846758,1769593842545,-2395.93,0.00016438,2]
[403846759,1769593842554,-2396.0314044,0.00016438,2]
[403846760,1769593842563,-4480.02931992,0.00016452,2]
[403846761,1769593842572,-1321.0,0.00016493,2]
[403846762,1769593842581,-599.60298507,0.00016496,2]
[403846763,1769593842590,-1321.0,0.00016499,2]
[403846764,1769593842599,-3120.27319947,0.000165,2]
[403846765,1769593842608,-5532.0,0.000165,5]
[403846766,1769593842618,-1428.82,0.00016514,2]
[403846767,1769593842627,-885.06,0.00016515,2]
[403846768,1769593842636,-286.00234252,0.00016535,2]
[403846769,1769593842648,-4457.0,0.00016555,2]
[403846770,1769593842657,-166.66,0.00016563,2]
[403846771,1769593842667,-4457.0,0.00016566,2]
[403846772,1769593842676,-346.92554585,0.00016586,2]
[403846773,1769593842685,-747.8093786,0.00016587,2]
[403846774,1769593842694,-209.40437684,0.00016588,2]
[403846775,1769593842703,-1024.43239068,0.00016588,2]
[403846776,1769593842713,-155.0,0.00016627,2]
[403846777,1769593842723,-1321.0,0.00016645,2]
[403846779,1769593842732,-1321.0,0.00016718,2]
[403846781,1769593842742,-1480.12,0.00016734,2]
[403846782,1769593842751,-1321.0,0.00016761,2]
[403846783,1769593842760,-2351.0,0.00016765,2]
[403846785,1769593842770,-1428.82,0.00016788,2]
[403846787,1769593842779,-166.11,0.00016892,2]
[403846789,1769593842789,-1000.0,0.00016921,2]
[403846791,1769593842798,-319.09148366,0.00016921,2]
[403846793,1769593842807,-459.38164171,0.00016921,2]
[403846795,1769593842817,-200.24998746,0.00016921,2]
[403846797,1769593842826,-501.87982886,0.00016921,2]
[403846798,1769593842835,-501.11024626,0.00016921,2]
[403846799,1769593842845,-514.21537798,0.00016921,2]
[403846800,1769593842858,-1321.0,0.00016969,2]
[403846801,1769593842869,-541.777439,0.00016969,2]
[403846802,1769593842880,-541.777439,0.00016969,2]
[403846803,1769593842889,-541.777439,0.00016969,2]
[403846804,1769593842899,-541.777439,0.00016969,2]
[403846805,1769593842909,-249.584912,0.00016969,2]
[403846806,1769593842919,-249.584912,0.00016969,2]
[403846807,1769593842931,-249.584912,0.00016969,2]
[403846808,1769593842942,-249.584912,0.00016969,2]
[403846809,1769593842952,-500.0,0.00016999,2]
[403846810,1769593842962,-500.0,0.00016999,2]
[403846811,1769593842972,-524.93822417,0.00016999,2]
[403846812,1769593842983,-500.0,0.00016999,2]
[403846813,1769593842992,-500.0,0.00016999,2]
[403846814,1769593843001,-250.0,0.00017,2]
[403846815,1769593843011,-409.79,0.00017,5]
[403846816,1769593843020,-166.66,0.00017046,2]
[403846817,1769593843030,-163.21,0.00017054,2]
[403846818,1769593843040,-171.54294493,0.00017059,2]
[403846819,1769593843050,-1428.82,0.00017062,2]
[403846820,1769593843059,-1321.0,0.00017064,2]
[403846821,1769593843386,-873.26,0.00017067,2]
[403846822,1769593843395,-1321.0,0.00017098,2]
[403846823,1769593843405,-885.06,0.00017112,2]
[403846824,1769593843414,-1321.0,0.00017126,2]
[403846825,1769593843423,-217.15233878,0.00017136,2]
[403846826,1769593843432,-1123.09547683,0.00017136,2]
[403846827,1769593843442,-151.0,0.00017141,2]
[403846828,1769593843451,-151.0,0.00017141,2]
[403846829,1769593843460,-151.0,0.00017141,2]
[403846830,1769593843470,-514.891868,0.00017141,2]
[403846831,1769593843479,-514.891868,0.00017141,2]
[403846832,1769593843489,-514.891868,0.00017141,2]
[403846833,1769593843499,-514.891868,0.00017141,2]
[403846834,1769593843509,-1321.0,0.00017164,2]
[403846835,1769593843518,-634.8,0.00017169,2]
[403846836,1769593843527,-500.0,0.00017295,2]
[403846837,1769593843536,-508.82801883,0.00017295,2]
[403846838,1769593843545,-500.0,0.00017295,2]
[403846839,1769593843554,-519.88726717,0.00017295,2]
[403846840,1769593843563,-1428.82,0.00017336,2]
[403846841,1769593843572,-151.0,0.0001744,2]
[403846842,1769593843582,-151.0,0.0001744,2]
[403846843,1769593843591,-151.0,0.0001744,2]
[403846844,1769593843600,-151.0,0.0001744,2]
[403846845,1769593843609,-151.0,0.0001744,2]
[403846846,1769593843618,-151.0,0.0001744,2]
[403846847,1769593843627,-151.0,0.0001744,2]
[403846848,1769593843637,-151.0,0.0001744,2]
[403846849,1769593843647,-238.373094,0.0001744,2]
[403846850,1769593843656,-1000.0,0.00017455,2]
[403846851,1769593843665,-1005.52548547,0.00017468,2]
[403846852,1769593843674,-209.28929397,0.00017478,2]
[403846853,1769593843688,-500.0,0.00017478,2]
[403846854,1769593843697,-736.0,0.000175,2]
[403846855,1769593843706,-1428.82,0.0001761,2]
[403846856,1769593843715,-328.02722337,0.00017684,2]
[403846857,1769593843726,-5200.0,0.000177,6]
[403846858,1769593843736,-885.06,0.00017709,2]
[403846859,1769593843745,-151.0,0.000178,2]
[403846860,1769593843755,-151.0,0.000178,2]
[403846861,1769593843764,-151.0,0.000178,2]
[403846862,1769593843774,-6500.0,0.000178,6]
[403846863,1769593843783,-297.37,0.00017819,2]
[403846864,1769593843793,-200.0,0.00017855,2]
[403846865,1769593843802,-1428.91857683,0.00017884,2]
[403846866,1769593843811,-10000.0,0.000179,2]
[403846867,1769593843821,-273.13352922,0.000179,2]
[403846868,1769593843832,-151.0,0.000179,2]
[403846869,1769593843843,-1300.0,0.000179,6]
[403846870,1769593843853,-200.301807,0.000179,2]
[403846871,1769593843862,-200.301807,0.000179,2]
[403846872,1769593843871,-200.301807,0.000179,2]
[403846873,1769593843882,-200.301807,0.000179,2]
[403846874,1769593843891,-2987.85380606,0.000179,2]
[403846875,1769593843902,-228.23051518,0.000179,3]
[403846876,1769593843912,-59550.73461234,0.000179,2]
[403846877,1769593843922,-359.76179104,0.00017955,2]
[403846878,1769593843932,-158.63104359,0.00017963,2]
[403846879,1769593843943,-500.0,0.00017973,2]
[403846880,1769593843952,-150.0,0.00017973,2]
[403846881,1769593843962,-192.59053623,0.0001799,2]
[403846882,1769593843972,-151.0,0.00017997,2]
[403846883,1769593843981,-298.56144985,0.00017999,2]
[403846884,1769593843991,-515.28066526,0.00017999,2]
[403846885,1769593844001,-522.28270672,0.00017999,2]
[403846886,1769593844011,-500.0,0.00017999,2]
[403846887,1769593844020,-500.0,0.00017999,2]
[403846888,1769593844029,-500.0,0.00017999,2]
[403846889,1769593844039,-642.98,0.00017999,2]
[403846890,1769593844048,-300.0,0.00017999,2]
[403846891,1769593844058,-666.0,0.00017999,2]
[403846892,1769593844068,-300.0,0.00017999,2]
[403846893,1769593844078,-666.0,0.00017999,2]
[403846894,1769593844087,-1975080.71634291,0.00018,2]
[403846895,1769593844096,-1191.25931111,0.00018,2]
[403846896,1769593844106,-3354356.52929011,0.00018,2]
[403846897,1769593844115,-189315.12467073,0.00018,2]
[403846898,1769593844125,-24575.69386211,0.00018,2]
[403846899,1769593844135,-151.0,0.00018,2]
[403846900,1769593844147,-151.0,0.00018,2]
[403846901,1769593844161,-151.0,0.00018,2]
[403846902,1769593844171,-151.0,0.00018,2]
[403846903,1769593844180,-151.0,0.00018,2]
[403846904,1769593844191,-151.0,0.00018,2]
[403846905,1769593844200,-151.0,0.00018,2]
[403846906,1769593844210,-151.0,0.00018,2]
[403846907,1769593844219,-151.0,0.00018,2]
[403846908,1769593844229,-151.0,0.00018,2]
[403846909,1769593844239,-151.0,0.00018,2]
[403846910,1769593844248,-151.0,0.00018,2]
[403846911,1769593844258,-151.0,0.00018,2]
[403846912,1769593844267,-275.854793,0.00018,2]
[403846913,1769593844277,-151.0,0.00018,2]
[403846914,1769593844287,-151.0,0.00018,2]
[403846915,1769593844297,-151.0,0.00018,2]
[403846916,1769593844307,-514.891868,0.00018,2]
[403846917,1769593844316,-514.891868,0.00018,2]
[403846918,1769593844325,-514.891868,0.00018,2]
[403846919,1769593844335,-514.891868,0.00018,2]
[403846920,1769593844345,-514.891868,0.00018,2]
[403846921,1769593844354,-514.891868,0.00018,2]
[403846922,1769593844364,-514.891868,0.00018,2]
[403846923,1769593844374,-514.891868,0.00018,2]
[403846924,1769593844384,-514.891868,0.00018,2]
[403846925,1769593844393,-514.891868,0.00018,2]
[403846926,1769593844402,-514.891868,0.00018,2]
[403846927,1769593844412,-514.891868,0.00018,2]
[403846928,1769593844421,-151.0,0.00018,2]
[403846929,1769593844431,-151.0,0.00018,2]
[403846930,1769593844440,-183.823457,0.00018,2]
[403846931,1769593844450,-501.0,0.00018,2]
[403846932,1769593844459,-200.301807,0.00018,2]
[403846933,1769593844469,-200.301807,0.00018,2]
[403846934,1769593844479,-200.301807,0.00018,2]
[403846935,1769593844489,-200.301807,0.00018,2]
[403846936,1769593844499,-200.301807,0.00018,2]
[403846937,1769593844509,-200.301807,0.00018,2]
[403846938,1769593844518,-200.301807,0.00018,2]
[403846939,1769593844528,-200.301807,0.00018,2]
[403846940,1769593844538,-200.301807,0.00018,2]
[403846941,1769593844548,-200.301807,0.00018,2]
[403846942,1769593844557,-200.301807,0.00018,2]
[403846943,1769593844567,-200.301807,0.00018,2]
[403846944,1769593844576,-151.0,0.00018,2]
[403846945,1769593844585,-151.0,0.00018,2]
[403846946,1769593844595,-151.0,0.00018,2]
[403846947,1769593844604,-157.133269,0.00018,2]
[403846948,1769593844614,-541.777439,0.00018,2]
[403846949,1769593844623,-541.777439,0.00018,2]
[403846950,1769593844633,-541.777439,0.00018,2]
[403846951,1769593844643,-541.777439,0.00018,2]
[403846952,1769593844651,-541.777439,0.00018,2]
[403846953,1769593844661,-541.777439,0.00018,2]
[403846954,1769593844670,-541.777439,0.00018,2]
[403846955,1769593844679,-541.777439,0.00018,2]
[403846956,1769593844688,-541.777439,0.00018,2]
[403846957,1769593844697,-541.777439,0.00018,2]
[403846958,1769593844706,-541.777439,0.00018,2]
[403846959,1769593844715,-541.777439,0.00018,2]
[403846960,1769593844724,-249.584912,0.00018,2]
[403846961,1769593844733,-159.502135,0.00018,2]
[403846962,1769593844742,-249.584912,0.00018,2]
[403846963,1769593844752,-249.584912,0.00018,2]
[403846964,1769593844761,-249.584912,0.00018,2]
[403846966,1769593844770,-249.584912,0.00018,2]
[403846968,1769593844780,-249.584912,0.00018,2]
[403846970,1769593844789,-249.584912,0.00018,2]
[403846972,1769593844798,-249.584912,0.00018,2]
[403846974,1769593844807,-249.584912,0.00018,2]
[403846976,1769593844816,-249.584912,0.00018,2]
[403846978,1769593844825,-249.584912,0.00018,2]
[403846980,1769593844834,-249.584912,0.00018,2]
[403846982,1769593844843,-151.0,0.00018,2]
[403846984,1769593844851,-151.0,0.00018,2]
[403846986,1769593844860,-151.0,0.00018,2]
[403846988,1769593844870,-151.0,0.00018,2]
[403846990,1769593844879,-151.0,0.00018,2]
[403846992,1769593844888,-151.0,0.00018,2]
[403846994,1769593844897,-151.0,0.00018,2]
[403846996,1769593844905,-151.0,0.00018,2]
[403846998,1769593844914,-151.0,0.00018,2]
[403847000,1769593844923,-166.11,0.00018018,2]
[403847002,1769593844933,-500.0,0.00018028,2]
[403847004,1769593844942,-1835.12410223,0.00018036,2]
[403847006,1769593844951,-200.0,0.00018082,2]
[403847008,1769593844960,-200.0,0.00018082,3]
[403847010,1769593844969,-200.0,0.00018082,4]
[403847012,1769593844979,-200.0,0.00018082,5]
[403847015,1769593844988,-200.0,0.00018082,6]
[403847017,1769593844997,-200.0,0.00018082,7]
[403847019,1769593845006,-292.19472761,0.00018082,8]
[403847021,1769593845016,-500.0,0.00018083,2]
[403847023,1769593845025,-500.0,0.00018137,2]
[403847025,1769593845034,-500.0,0.00018192,2]
[403847027,1769593845043,-500.0,0.00018247,2]
[403847029,1769593845051,-500.0,0.00018302,2]
[403847031,1769593845060,-885.06,0.00018306,2]
[403847033,1769593845069,-500.0,0.00018357,2]
[403847035,1769593845078,-289.8103178,0.00018411,2]
[403847037,1769593845087,-868.22,0.00018436,2]
[403847039,1769593845097,-3292.0,0.00018442,2]
[403847041,1769593845106,-205.65,0.00018451,2]
[403847043,1769593845116,-2987.85380605,0.00018695,2]
[403847045,1769593845125,-1000.0,0.0001871,2]
[403847047,1769593845135,-1000.0,0.00018726,2]
[403847050,1769593845150,-873.26,0.00018774,2]
[403847052,1769593845159,-1000.0,0.00018824,2]
[403847054,1769593845168,-451.0,0.00018927,2]
[403847056,1769593845177,-10076.80540011,0.00018934,2]
[403847058,1769593845187,-1000.0,0.00018944,2]
[403847060,1769593845196,-214.75381521,0.00018997,2]
[403847062,1769593845205,-300.0,0.00018999,2]
[403847064,1769593845215,-300.0,0.00019,2]
[403847066,1769593845224,-566.81664929,0.00019,2]
[403847068,1769593845233,-75064.49417613,0.00019,2]
[403847070,1769593845242,-1000.0,0.00019019,2]
[403847072,1769593845251,-200.19495985,0.00019082,2]
[403847074,1769593845260,-297.37,0.00019139,2]
[403847076,1769593845269,-166.11,0.00019144,2]
[403847078,1769593845278,-300.0,0.00019177,2]
[403847080,1769593845287,-500.0,0.00019178,2]
[403847082,1769593845296,-500.0,0.00019178,2]
[403847084,1769593845305,-500.0,0.00019178,2]
[403847086,1769593845314,-570.27863892,0.00019178,2]
[403847088,1769593845323,-500.0,0.00019178,2]
[403847090,1769593845334,-151.0,0.00019178,2]
[403847092,1769593845343,-151.0,0.00019178,2]
[403847094,1769593845352,-151.0,0.00019178,2]
[403847096,1769593845362,-151.0,0.00019178,2]
[403847098,1769593845372,-151.0,0.00019178,2]
[403847100,1769593845381,-151.0,0.00019178,2]
[403847102,1769593845389,-151.0,0.00019178,2]
[403847104,1769593845398,-151.0,0.00019178,2]
[403847106,1769593845407,-151.0,0.00019178,2]
[403847108,1769593845416,-609.283592,0.00019178,2]
[403847110,1769593845426,-609.283592,0.00019178,2]
[403847112,1769593845435,-609.283592,0.00019178,2]
[403847114,1769593845444,-609.283592,0.00019178,2]
[403847116,1769593845453,-609.283592,0.00019178,2]
[403847118,1769593845462,-609.283592,0.00019178,2]
[403847120,1769593845471,-609.283592,0.00019178,2]
[403847122,1769593845481,-609.283592,0.00019178,2]
[403847125,1769593845491,-609.283592,0.00019178,2]
[403847127,1769593845501,-609.283592,0.00019178,2]
[403847129,1769593845510,-609.283592,0.00019178,2]
[403847131,1769593845519,-609.283592,0.00019178,2]
[403847133,1769593845529,-609.283592,0.00019178,2]
[403847135,1769593845539,-609.283592,0.00019178,2]
[403847137,1769593845548,-609.283592,0.00019178,2]
[403847139,1769593845557,-609.283592,0.00019178,2]
[403847141,1769593845566,-634.8,0.00019188,2]
[403847143,1769593845575,-1000.0,0.00019201,2]
[403847145,1769593845585,-621.78829552,0.00019235,2]
[403847147,1769593845595,-1000.0,0.00019316,2]
[403847149,1769593845603,-373.07297731,0.00019324,2]
[403847151,1769593845612,-668.71620862,0.00019326,2]
[403847153,1769593845621,-1000.0,0.00019376,2]
[403847155,1769593845630,-155.0,0.00019398,2]
[403847157,1769593845639,-1000.0,0.00019446,2]
[403847159,1769593845648,-2987.85380605,0.00019489,2]
[403847161,1769593845659,-150.0,0.0001954,2]
[403847163,1769593845667,-1585.44,0.0001955,2]
[403847165,1769593845676,-1000.0,0.00019678,2]
[403847167,1769593845685,-2000.0,0.000197,2]
[403847169,1769593845694,-150.0,0.00019701,2]
[403847171,1769593845703,-1000.0,0.00019732,2]
[403847173,1769593845712,-150.0,0.00019763,2]
[403847175,1769593845721,-150.0,0.0001981,2]
[403847177,1769593845731,-1000.0,0.00019856,2]
[403847179,1769593845741,-150.0,0.00019898,2]
[403847181,1769593845750,-1000.0,0.00019913,2]
[403847183,1769593845760,-925.51190611,0.00019928,2]
[403847185,1769593845769,-1000.0,0.00019955,2]
[403847187,1769593845778,-1000.0,0.00019967,2]
[403847189,1769593845787,-164.54954187,0.0002,2]
[403847192,1769593845796,-500.0,0.0002,2]
[403847195,1769593845805,-500.0,0.0002,2]
[403847197,1769593845814,-1000.0,0.00020022,2]